fUST/lending_fUST_20250301
["ID","MTS","AMOUNT","RATE_DAILY","PERIOD"]
[354927807,1740827442177,-500.0,0.00032675,2]
[354927808,1740827442186,-355.31543668,0.00032675,2]
[354927809,1740827442196,-500.0,0.00032675,2]
[354927811,1740827442206,-500.0,0.00032675,2]
[354927812,1740827442215,-500.0,0.00032675,2]
[354927813,1740827442224,-670.17,0.00032675,2]
[354927814,1740827442234,-500.0,0.00032675,2]
[354927815,1740827442243,-1412.71783762,0.00032704,2]
[354927816,1740827442252,-302.0,0.00032755,2]
[354927817,1740827442261,-800.0,0.00032755,2]
[354927818,1740827442271,-880.0,0.00032755,2]
[354927819,1740827442280,-968.0,0.00032755,2]
[354927820,1740827442290,-1064.8,0.00032755,2]
[354927821,1740827442300,-1171.28,0.00032755,2]
[354927822,1740827442310,-1288.408,0.00032755,2]
[354927823,1740827442320,-1417.2488,0.00032755,2]
[354927824,1740827442329,-1558.97368,0.00032755,2]
[354927825,1740827442340,-1714.871048,0.00032755,2]
[354927826,1740827442350,-1600.0,0.00032755,2]
[354927827,1740827442364,-500.0,0.00032772,2]
[354927828,1740827442374,-2382.55,0.00032772,2]
[354927829,1740827442384,-782.66,0.00032772,2]
[354927830,1740827442394,-500.0,0.00032772,2]
[354927831,1740827442404,-500.0,0.00032772,2]
[354927832,1740827442414,-3966.6,0.00032772,2]
[354927833,1740827442424,-528.36,0.00032772,2]
[354927834,1740827442434,-1515.84,0.00032772,2]
[354927835,1740827442444,-543.3,0.00032772,2]
[354927836,1740827442453,-500.0,0.00032772,2]
[354927837,1740827442463,-27057.35,0.00032772,2]
[354927838,1740827442474,-3695.56,0.00032772,2]
[354927839,1740827442485,-3873.23,0.00032772,2]
[354927840,1740827442495,-8684.61,0.00032772,2]
[354927841,1740827442506,-4330.49,0.00032772,2]
[354927842,1740827442518,-1278.07,0.00032772,2]
[354927843,1740827442530,-2240.02,0.00032772,2]
[354927844,1740827442541,-1552.81,0.00032772,5]
[354927845,1740827442553,-500.0,0.00032772,2]
[354927846,1740827442565,-1697.13,0.00032772,2]
[354927847,1740827442577,-931.0,0.00032772,2]
[354927848,1740827442588,-4463.49,0.00032772,2]
[354927849,1740827442601,-500.0,0.00032772,2]
[354927850,1740827442623,-500.0,0.00032772,2]
[354927855,1740827442856,-728.77,0.00032772,2]
[354927857,1740827442882,-3566.72,0.00032772,2]
[354927859,1740827442895,-1659.23,0.00032772,2]
[354927860,1740827442907,-8776.72,0.00032772,2]
[354927861,1740827442919,-500.0,0.00032772,2]
[354927863,1740827442932,-1342.93,0.00032772,2]
[354927865,1740827442950,-500.0,0.00032772,2]
[354927868,1740827442962,-1913.86,0.00032772,2]
[354927869,1740827442974,-500.0,0.00032773,5]
[354927870,1740827442987,-500.0,0.00032773,5]
[354927871,1740827443000,-500.0,0.00032773,3]
[354927872,1740827443012,-500.0,0.00032773,5]
[354927873,1740827443025,-500.0,0.00032773,5]
[354927874,1740827443037,-500.292346,0.00032773,5]
[354927876,1740827443053,-500.0,0.00032773,5]
[354927877,1740827443067,-500.0,0.00032773,5]
[354927878,1740827443080,-500.0,0.00032773,5]
[354927879,1740827443092,-567.47,0.00032773,2]
[354927880,1740827443104,-1082.96,0.00032773,2]
[354927881,1740827443127,-1384.87,0.00032773,2]
[354927882,1740827443140,-818.31,0.00032773,2]
[354927883,1740827443157,-500.0,0.00032773,2]
[354927884,1740827443170,-500.0,0.00032773,2]
[354927885,1740827443183,-845.09,0.00032773,2]
[354927886,1740827443195,-500.0,0.00032773,2]
[354927887,1740827443207,-500.0,0.00032773,2]
[354927888,1740827443219,-1141.1,0.00032773,2]
[354927889,1740827443232,-500.0,0.00032773,2]
[354927890,1740827443244,-500.0,0.00032773,2]
[354927891,1740827443260,-980.22,0.00032773,2]
[354927892,1740827443273,-500.0,0.00032773,2]
[354927893,1740827443285,-500.0,0.00032773,2]
[354927894,1740827443298,-1256.38,0.00032773,2]
[354927895,1740827443312,-946.29,0.00032773,2]
[354927896,1740827443323,-500.0,0.00032773,2]
[354927897,1740827443334,-500.0,0.00032773,2]
[354927898,1740827443347,-500.0,0.00032773,2]
[354927899,1740827443368,-500.0,0.00032773,2]
[354927900,1740827443381,-514.98,0.00032773,2]
[354927902,1740827443393,-500.0,0.00032773,2]
[354927903,1740827443405,-500.0,0.00032773,2]
[354927904,1740827443417,-697.0,0.00032773,2]
[354927905,1740827443433,-950.99,0.00032773,2]
[354927906,1740827443446,-1596.7,0.00032773,2]
[354927907,1740827443458,-1472.3,0.00032773,2]
[354927908,1740827443470,-908.6,0.00032773,2]
[354927909,1740827443482,-500.0,0.00032773,2]
[354927910,1740827443494,-801.651305,0.00032773,7]
[354927911,1740827443506,-151.0,0.00032773,7]
[354927912,1740827443519,-704.0,0.00032773,2]
[354927913,1740827443532,-801.651305,0.00032773,7]
[354927914,1740827443545,-151.0,0.00032773,7]
[354927915,1740827443557,-500.0,0.00032773,2]
[354927916,1740827443568,-500.0,0.00032773,2]
[354927917,1740827443580,-629.3,0.00032773,2]
[354927918,1740827443591,-151.0,0.00032773,7]
[354927919,1740827443603,-213.534602,0.00032773,7]
[354927920,1740827443620,-500.0,0.00032773,2]
[354927921,1740827443631,-213.534602,0.00032773,7]
[354927922,1740827443641,-422.586056,0.00032773,7]
[354927923,1740827443653,-402.074322,0.00032773,7]
[354927924,1740827443665,-402.074322,0.00032773,7]
[354927926,1740827443676,-422.586056,0.00032773,7]
[354927928,1740827443686,-578.75,0.00032773,2]
[354927930,1740827443697,-500.0,0.00032773,2]
[354927932,1740827443707,-224.546698,0.00032773,7]
[354927933,1740827443718,-1935.53,0.00032773,2]
[354927934,1740827443729,-224.546698,0.00032773,7]
[354927935,1740827443739,-2663.691144,0.00032773,7]
[354927936,1740827443750,-2663.691144,0.00032773,7]
[354927937,1740827443761,-13788.79,0.00032773,2]
[354927938,1740827443885,-500.0,0.00032773,2]
[354927939,1740827443905,-1781.92,0.00032773,2]
[354927940,1740827443915,-1463.31,0.00032773,2]
[354927941,1740827443926,-2008.67,0.00032773,2]
[354927942,1740827443935,-500.0,0.00032773,2]
[354927943,1740827443946,-177.686167,0.00032773,7]
[354927944,1740827443956,-177.686167,0.00032773,7]
[354927945,1740827443967,-500.0,0.00032773,2]
[354927946,1740827443976,-507.0,0.00032773,2]
[354927947,1740827443986,-151.0,0.00032773,7]
[354927948,1740827443996,-559.7,0.00032773,2]
[354927949,1740827444006,-1031.23,0.00032773,2]
[354927950,1740827444015,-151.0,0.00032773,7]
[354927951,1740827444027,-151.0,0.00032773,7]
[354927952,1740827444036,-244.929941,0.00032773,7]
[354927953,1740827444046,-244.929941,0.00032773,7]
[354927954,1740827444059,-500.0,0.00032773,2]
[354927955,1740827444070,-2436.19,0.00032773,2]
[354927956,1740827444079,-1111.327086,0.00032773,7]
[354927957,1740827444089,-500.0,0.00032773,2]
[354927958,1740827444099,-1111.327086,0.00032773,7]
[354927959,1740827444114,-500.0,0.00032773,2]
[354927960,1740827444125,-405.102935,0.00032773,7]
[354927961,1740827444144,-405.102935,0.00032773,7]
[354927962,1740827444155,-981.97,0.00032773,2]
[354927963,1740827444166,-151.0,0.00032773,7]
[354927964,1740827444177,-785.65,0.00032773,2]
[354927965,1740827444187,-500.0,0.00032773,2]
[354927966,1740827444197,-500.0,0.00032773,2]
[354927967,1740827444207,-675.417114,0.00032773,7]
[354927968,1740827444216,-675.417114,0.00032773,7]
[354927969,1740827444227,-1332.738602,0.00032773,7]
[354927970,1740827444237,-1332.738602,0.00032773,7]
[354927971,1740827444247,-500.0,0.00032773,2]
[354927972,1740827444256,-675.417114,0.00032773,7]
[354927973,1740827444266,-675.417114,0.00032773,7]
[354927974,1740827444276,-1332.738602,0.00032773,7]
[354927975,1740827444285,-1332.738602,0.00032773,7]
[354927976,1740827444295,-151.0,0.00032773,7]
[354927977,1740827444304,-160.0,0.00032773,7]
[354927978,1740827444314,-151.0,0.00032773,7]
[354927979,1740827444323,-151.0,0.00032773,7]
[354927980,1740827444333,-215.275607,0.00032773,7]
[354927981,1740827444343,-215.275607,0.00032773,7]
[354927982,1740827444354,-151.0,0.00032773,7]
[354927983,1740827444369,-160.70743,0.00032773,7]
[354927984,1740827444379,-6994.97,0.00032775,2]
[354927985,1740827444390,-500.0,0.00032775,2]
[354927986,1740827444400,-500.0,0.00032775,2]
[354927987,1740827444412,-500.0,0.00032775,2]
[354927988,1740827444422,-151.0,0.00032775,7]
[354927989,1740827444432,-1890.24,0.00032775,2]
[354927990,1740827444442,-500.0,0.00032775,2]
[354927991,1740827444452,-151.0,0.00032775,7]
[354927992,1740827444462,-187685.89,0.00032775,2]
[354927993,1740827444472,-151.0,0.00032775,7]
[354927994,1740827444482,-3565.57,0.00032775,2]
[354927995,1740827444492,-1818.41,0.00032775,2]
[354927996,1740827444502,-10931.63,0.00032775,2]
[354927997,1740827444512,-5510.34,0.00032775,2]
[354927998,1740827444522,-500.0,0.00032775,2]
[354927999,1740827444532,-500.0,0.00032775,2]
[354928000,1740827444541,-2618.85,0.00032775,2]
[354928001,1740827444551,-1070.94,0.00032775,2]
[354928002,1740827444561,-775.54,0.00032775,2]
[354928003,1740827444571,-2016.37,0.00032775,2]
[354928004,1740827444581,-675.417114,0.00032775,7]
[354928005,1740827444591,-1332.738602,0.00032775,7]
[354928006,1740827444600,-675.417114,0.00032775,7]
[354928007,1740827444615,-1332.738602,0.00032775,7]
[354928008,1740827444624,-151.0,0.00032775,7]
[354928009,1740827444634,-500.0,0.00032775,2]
[354928010,1740827444644,-151.0,0.00032775,7]
[354928011,1740827444654,-222000.0,0.00032776,2]
[354928012,1740827444664,-3000.0,0.00032776,2]
[354928013,1740827444674,-310.346,0.00032776,33]
[354928014,1740827444684,-151.0,0.00032776,7]
[354928015,1740827444694,-151.0,0.00032776,7]
[354928016,1740827444704,-151.0,0.00032776,7]
[354928017,1740827444714,-151.0,0.00032776,7]
[354928018,1740827444723,-151.0,0.00032776,7]
[354928019,1740827444733,-151.0,0.00032776,7]
[354928020,1740827444743,-151.0,0.00032776,7]
[354928021,1740827444752,-151.0,0.00032776,7]
[354928022,1740827444762,-290.357858,0.00032776,7]
[354928023,1740827444771,-151.0,0.00032776,7]
[354928024,1740827444781,-801.651305,0.00032776,7]
[354928025,1740827444790,-151.0,0.00032776,7]
[354928026,1740827444800,-801.651305,0.00032776,7]
[354928027,1740827444810,-151.0,0.00032776,7]
[354928028,1740827444820,-151.0,0.00032776,7]
[354928029,1740827444830,-213.534602,0.00032776,7]
[354928030,1740827444840,-213.534602,0.00032776,7]
[354928031,1740827444850,-422.586056,0.00032776,7]
[354928032,1740827444864,-402.074322,0.00032776,7]
[354928033,1740827444873,-402.074322,0.00032776,7]
[354928034,1740827444883,-422.586056,0.00032776,7]
[354928035,1740827444894,-224.546698,0.00032776,7]
[354928036,1740827444903,-224.546698,0.00032776,7]
[354928037,1740827444914,-2663.691144,0.00032776,7]
[354928038,1740827444923,-2663.691144,0.00032776,7]
[354928039,1740827444934,-177.686167,0.00032776,7]
[354928040,1740827444944,-177.686167,0.00032776,7]
[354928041,1740827444953,-151.0,0.00032776,7]
[354928042,1740827444963,-151.0,0.00032776,7]
[354928043,1740827444972,-244.929941,0.00032776,7]
[354928044,1740827444982,-244.929941,0.00032776,7]
[354928045,1740827444992,-1111.327086,0.00032776,7]
[354928046,1740827445001,-1111.327086,0.00032776,7]
[354928047,1740827445011,-405.102935,0.00032776,7]
[354928048,1740827445021,-405.102935,0.00032776,7]
[354928049,1740827445033,-151.0,0.00032776,7]
[354928050,1740827445043,-675.417114,0.00032776,7]
[354928051,1740827445054,-1332.738602,0.00032776,7]
[354928052,1740827445065,-675.417114,0.00032776,7]
[354928053,1740827445075,-1332.738602,0.00032776,7]
[354928054,1740827445085,-151.0,0.00032776,7]
[354928055,1740827445095,-151.0,0.00032776,7]
[354928056,1740827445105,-215.275607,0.00032776,7]
[354928057,1740827445118,-215.275607,0.00032776,7]
[354928058,1740827445128,-150.0,0.000328,32]
[354928059,1740827445139,-9465.59451996,0.000328,2]
[354928060,1740827445150,-500.0,0.00032848,2]
[354928061,1740827445161,-500.0,0.00032848,2]
[354928062,1740827445171,-500.0,0.00032848,2]
[354928063,1740827445181,-528.51,0.00032848,2]
[354928064,1740827445191,-500.0,0.00032848,2]
[354928065,1740827445201,-500.0,0.00032848,2]
[354928066,1740827445210,-1139.83,0.00032848,2]
[354928067,1740827445220,-500.0,0.00032848,2]
[354928068,1740827445230,-500.0,0.00032848,2]
[354928070,1740827445241,-500.0,0.00032848,2]
[354928071,1740827445251,-500.0,0.00032848,2]
[354928072,1740827445262,-546.86,0.00032848,2]
[354928073,1740827445271,-550.25729886,0.00032848,2]
[354928074,1740827445281,-912.7,0.00032848,2]
[354928075,1740827445292,-600.67,0.00032848,2]
[354928076,1740827445302,-500.0,0.00032848,2]
[354928077,1740827445312,-631.9,0.00032848,2]
[354928078,1740827445321,-500.0,0.00032848,2]
[354928079,1740827445331,-500.0,0.00032848,2]
[354928080,1740827445342,-500.0,0.00032848,2]
[354928081,1740827445352,-1724.2,0.00032848,2]
[354928083,1740827445366,-1779.2,0.00032848,2]
[354928084,1740827445377,-500.0,0.00032848,2]
[354928085,1740827445387,-500.0,0.00032848,2]
[354928086,1740827445397,-500.0,0.00032848,2]
[354928087,1740827445408,-500.0,0.00032848,2]
[354928088,1740827445419,-500.0,0.00032848,2]
[354928090,1740827445430,-500.0,0.00032848,2]
[354928092,1740827445440,-500.0,0.00032848,2]
[354928093,1740827445450,-500.0,0.00032848,2]
[354928094,1740827445460,-902.09,0.00032848,2]
[354928095,1740827445470,-500.0,0.00032848,2]
[354928096,1740827445479,-2180.11,0.00032848,2]
[354928097,1740827445489,-500.0,0.00032848,2]
[354928098,1740827445499,-500.0,0.00032848,2]
[354928099,1740827445509,-500.0,0.00032848,2]
[354928100,1740827445805,-500.0,0.00032848,2]
[354928101,1740827445818,-500.0,0.00032848,2]
[354928102,1740827445827,-500.0,0.00032848,2]
[354928103,1740827445837,-746.7,0.00032848,2]
[354928104,1740827445847,-500.0,0.00032848,2]
[354928105,1740827445861,-1301.56,0.00032848,2]
[354928106,1740827445871,-740.32,0.00032848,2]
[354928107,1740827445882,-718.08,0.00032848,2]
[354928108,1740827445892,-618.21,0.00032848,2]
[354928109,1740827445902,-500.0,0.00032848,2]
[354928110,1740827445912,-500.0,0.00032848,2]
[354928111,1740827445923,-500.0,0.00032848,2]
[354928112,1740827445934,-500.0,0.00032848,2]
[354928113,1740827445945,-729.99,0.00032848,2]
[354928114,1740827445954,-1447.02,0.00032848,2]
[354928115,1740827445965,-500.0,0.00032848,2]
[354928116,1740827445976,-500.0,0.00032848,2]
[354928117,1740827445987,-500.0,0.00032848,2]
[354928118,1740827445999,-1305.27,0.00032848,2]
[354928119,1740827446010,-545.39,0.00032848,2]
[354928120,1740827446022,-765.33,0.00032848,2]
[354928121,1740827446034,-1028.48,0.00032848,2]
[354928122,1740827446045,-1669.28,0.00032848,2]
[354928123,1740827446057,-568.92,0.00032848,2]
[354928125,1740827446070,-500.0,0.00032848,2]
[354928127,1740827446081,-500.0,0.00032848,2]
[354928129,1740827446093,-500.0,0.00032848,2]
[354928130,1740827446106,-500.0,0.00032848,2]
[354928131,1740827446123,-2297.22,0.00032848,2]
[354928132,1740827446134,-13892.97,0.00032848,2]
[354928133,1740827446147,-500.0,0.00032848,2]
[354928134,1740827446160,-717.17,0.00032848,2]
[354928136,1740827446172,-891.35,0.00032848,2]
[354928137,1740827446183,-232.7446735,0.00032848,2]
[354928139,1740827446194,-1455.19,0.00032848,2]
[354928140,1740827446205,-1541.49,0.00032848,2]
[354928142,1740827446218,-3582.82,0.00032848,2]
[354928143,1740827446233,-2369.23,0.00032848,2]
[354928144,1740827446245,-546.86,0.00032848,2]
[354928145,1740827446257,-500.0,0.00032848,2]
[354928146,1740827446268,-508.98,0.00032848,2]
[354928147,1740827446280,-500.0,0.00032848,2]
[354928148,1740827446292,-1321.14,0.00032848,2]
[354928149,1740827446306,-538.1,0.00032848,2]
[354928150,1740827446317,-863.61,0.00032848,2]
[354928151,1740827446328,-500.0,0.00032848,2]
[354928152,1740827446338,-979.69,0.00032848,2]
[354928153,1740827446348,-151.0,0.00032848,7]
[354928154,1740827446363,-2078.68,0.00032848,2]
[354928155,1740827446373,-500.0,0.00032848,2]
[354928156,1740827446384,-641.93,0.00032848,2]
[354928157,1740827446394,-518.52,0.00032848,2]
[354928158,1740827446405,-500.0,0.00032848,2]
[354928159,1740827446415,-2096.68,0.00032848,2]
[354928160,1740827446425,-500.0,0.00032848,2]
[354928161,1740827446437,-319.1493919,0.00032848,2]
[354928162,1740827446447,-500.0,0.00032848,2]
[354928163,1740827446457,-708.58,0.00032848,2]
[354928164,1740827446467,-500.0,0.00032848,2]
[354928165,1740827446477,-500.0,0.00032848,2]
[354928166,1740827446487,-1183.29,0.00032848,2]
[354928167,1740827446497,-151.0,0.00032848,7]
[354928168,1740827446507,-558.27,0.00032848,2]
[354928169,1740827446517,-500.0,0.00032848,2]
[354928170,1740827446527,-244.929941,0.00032848,7]
[354928171,1740827446537,-1219.49,0.00032848,2]
[354928172,1740827446548,-1647.58,0.00032848,2]
[354928173,1740827446558,-244.929941,0.00032848,7]
[354928174,1740827446570,-500.0,0.00032848,2]
[354928175,1740827446580,-500.0,0.00032848,2]
[354928176,1740827446590,-500.0,0.00032848,2]
[354928177,1740827446601,-1889.1,0.00032848,2]
[354928178,1740827446615,-744.39,0.00032848,2]
[354928179,1740827446624,-669.13,0.00032848,2]
[354928180,1740827446634,-500.0,0.00032848,2]
[354928181,1740827446645,-500.0,0.00032848,2]
[354928182,1740827446656,-500.0,0.00032848,2]
[354928183,1740827446667,-2484.74,0.00032848,2]
[354928184,1740827446678,-660.69,0.00032848,2]
[354928185,1740827446690,-500.0,0.00032848,2]
[354928186,1740827446700,-1016.83,0.00032848,2]
[354928187,1740827446712,-1111.327086,0.00032848,7]
[354928188,1740827446725,-599.11,0.00032848,2]
[354928189,1740827446736,-1111.327086,0.00032848,7]
[354928190,1740827446748,-500.0,0.00032848,2]
[354928191,1740827446758,-405.102935,0.00032848,7]
[354928192,1740827446770,-669.73,0.00032848,2]
[354928193,1740827446782,-405.102935,0.00032848,7]
[354928194,1740827446793,-1344.16,0.00032848,2]
[354928195,1740827446804,-829.96,0.00032848,2]
[354928196,1740827446819,-531.48,0.00032848,2]
[354928197,1740827446830,-500.0,0.00032848,2]
[354928198,1740827446843,-826.37,0.00032848,2]
[354928199,1740827446855,-1702.6,0.00032848,2]
[354928200,1740827446873,-1178.98,0.00032848,2]
[354928201,1740827446885,-500.0,0.00032848,2]
[354928202,1740827446897,-153.592137,0.00032848,7]
[354928203,1740827446909,-1521.82,0.00032848,2]
[354928204,1740827446921,-500.0,0.00032848,2]
[354928205,1740827446933,-500.0,0.00032848,2]
[354928206,1740827446944,-500.0,0.00032848,2]
[354928207,1740827446955,-500.0,0.00032848,2]
[354928208,1740827446969,-34098.75,0.00032848,2]
[354928209,1740827446979,-500.0,0.00032848,2]
[354928210,1740827446990,-1605.05,0.00032848,2]
[354928211,1740827447000,-565.94,0.00032848,2]
[354928212,1740827447010,-675.417114,0.00032848,7]
[354928213,1740827447020,-1332.738602,0.00032848,7]
[354928214,1740827447031,-500.0,0.00032848,2]
[354928215,1740827447042,-2516.79,0.00032848,2]
[354928216,1740827447053,-675.417114,0.00032848,7]
[354928217,1740827447066,-500.0,0.00032848,2]
[354928218,1740827447078,-1332.738602,0.00032848,7]
[354928219,1740827447089,-500.0,0.00032848,2]
[354928220,1740827447101,-1162.67,0.00032848,2]
[354928221,1740827447118,-919.45,0.00032848,2]
[354928222,1740827447129,-500.0,0.00032848,2]
[354928223,1740827447140,-151.0,0.00032848,7]
[354928224,1740827447151,-931.05,0.00032848,2]
[354928225,1740827447163,-2171.53,0.00032848,2]
[354928226,1740827447174,-500.0,0.00032848,2]
[354928227,1740827447185,-500.0,0.00032848,2]
[354928228,1740827447195,-151.0,0.00032848,7]
[354928229,1740827447206,-215.275607,0.00032848,7]
[354928230,1740827447216,-215.275607,0.00032848,7]
[354928231,1740827447227,-655.84,0.00032848,2]
[354928232,1740827447237,-500.0,0.00032848,2]
[354928233,1740827447248,-2599.91749048,0.00032849,15]
[354928234,1740827447258,-17046.43718097,0.00032849,15]
[354928235,1740827447268,-500.0,0.00032849,2]
[354928236,1740827447278,-500.0,0.00032849,2]
[354928237,1740827447288,-500.0,0.00032849,2]
[354928238,1740827447298,-500.0,0.00032849,2]
[354928239,1740827447308,-500.0,0.00032849,2]
[354928240,1740827447318,-500.0,0.00032849,2]
[354928241,1740827447328,-500.0,0.00032849,2]
[354928242,1740827447338,-502.77093405,0.00032849,2]
[354928243,1740827447348,-520.21,0.00032849,2]
[354928244,1740827447361,-525.19719281,0.00032849,2]
[354928245,1740827447371,-500.0,0.00032849,2]
[354928246,1740827447381,-500.0,0.00032849,2]
[354928247,1740827447391,-500.0,0.00032849,2]
[354928248,1740827447400,-713.43,0.00032849,2]
[354928249,1740827447410,-840.74,0.00032849,2]
[354928250,1740827447419,-500.0,0.00032849,2]
[354928251,1740827447430,-500.0,0.00032849,2]
[354928252,1740827447439,-647.24,0.00032849,2]
[354928253,1740827447451,-1297.08,0.00032849,2]
[354928254,1740827447461,-500.0,0.00032849,2]
[354928255,1740827447470,-500.0,0.00032849,2]
[354928256,1740827447480,-434.09716827,0.00032849,2]
[354928257,1740827447490,-500.0,0.00032849,2]
[354928258,1740827447500,-500.0,0.00032849,2]
[354928259,1740827447510,-1197.1,0.00032849,2]
[354928260,1740827447519,-500.0,0.00032849,2]
[354928261,1740827447529,-596.69452969,0.00032849,2]
[354928262,1740827447539,-500.0,0.00032849,2]
[354928263,1740827447549,-500.0,0.00032849,2]
[354928264,1740827447559,-1421.83,0.00032849,2]
[354928265,1740827447570,-500.0,0.00032849,2]
[354928266,1740827447580,-500.0,0.00032849,2]
[354928267,1740827447590,-500.0,0.00032849,2]
[354928268,1740827447600,-1415.73,0.00032849,2]
[354928269,1740827447611,-500.0,0.00032849,2]
[354928270,1740827447622,-500.0,0.00032849,2]
[354928271,1740827447632,-500.0,0.00032849,2]
[354928272,1740827447642,-1252.13,0.00032849,2]
[354928273,1740827447652,-500.0,0.00032849,2]
[354928274,1740827447662,-500.0,0.00032849,2]
[354928275,1740827447673,-1467.57,0.00032849,2]
[354928276,1740827447683,-548.29,0.00032849,2]
[354928277,1740827447693,-555.98,0.00032849,2]
[354928278,1740827447703,-500.0,0.00032849,2]
[354928279,1740827447713,-772.87,0.00032849,2]
[354928280,1740827447723,-1522.39,0.00032849,2]
[354928281,1740827447733,-500.0,0.00032849,2]
[354928282,1740827447743,-500.0,0.00032849,2]
[354928283,1740827447753,-500.0,0.00032849,2]
[354928284,1740827447764,-798.84,0.00032849,2]
[354928285,1740827447774,-4827.16,0.00032849,2]
[354928286,1740827447784,-751.86,0.00032849,2]
[354928287,1740827447793,-1105.14,0.00032849,2]
[354928288,1740827447804,-151.0,0.00032849,7]
[354928289,1740827447814,-160.93433,0.00032849,7]
[354928290,1740827447824,-151.0,0.00032849,7]
[354928291,1740827447834,-151.0,0.00032849,7]
[354928292,1740827447843,-500.0,0.00032849,2]
[354928293,1740827447853,-761.24,0.00032849,2]
[354928294,1740827447867,-500.0,0.00032849,2]
[354928295,1740827447876,-500.0,0.00032849,2]
[354928296,1740827447886,-500.0,0.00032849,2]
[354928297,1740827447895,-151.0,0.00032849,7]
[354928298,1740827447905,-500.0,0.00032849,2]
[354928299,1740827447914,-500.0,0.00032849,2]
[354928300,1740827447924,-617.67,0.00032849,2]
[354928301,1740827447934,-224.50637899,0.00032849,2]
[354928302,1740827447943,-500.0,0.00032849,2]
[354928303,1740827447953,-630.37,0.00032849,2]
[354928304,1740827447962,-151.0,0.00032849,7]
[354928305,1740827447972,-578.03,0.00032849,2]
[354928306,1740827447982,-500.0,0.00032849,2]
[354928307,1740827447992,-575.12,0.00032849,2]
[354928308,1740827448003,-500.0,0.00032849,2]
[354928309,1740827448012,-500.0,0.00032849,2]
[354928310,1740827448023,-525.96,0.00032849,2]
[354928311,1740827448035,-151.0,0.00032849,7]
[354928312,1740827448046,-500.0,0.00032849,2]
[354928313,1740827448057,-546.72,0.00032849,2]
[354928314,1740827448069,-500.0,0.00032849,2]
[354928315,1740827448080,-1024.6,0.00032849,2]
[354928316,1740827448091,-290.357858,0.00032849,7]
[354928317,1740827448101,-151.0,0.00032849,7]
[354928318,1740827448116,-500.0,0.00032849,2]
[354928319,1740827448127,-500.0,0.00032849,2]
[354928320,1740827448137,-500.0,0.00032849,2]
[354928321,1740827448149,-500.0,0.00032849,2]
[354928322,1740827448160,-500.0,0.00032849,2]
[354928323,1740827448170,-500.0,0.00032849,2]
[354928324,1740827448181,-500.0,0.00032849,2]
[354928325,1740827448192,-801.651305,0.00032849,7]
[354928326,1740827448204,-913.55,0.00032849,2]
[354928327,1740827448215,-151.0,0.00032849,7]
[354928328,1740827448225,-500.0,0.00032849,2]
[354928329,1740827448235,-500.0,0.00032849,2]
[354928330,1740827448245,-151.0,0.00032849,7]
[354928331,1740827448255,-500.0,0.00032849,2]
[354928332,1740827448265,-801.651305,0.00032849,7]
[354928333,1740827448276,-500.0,0.00032849,2]